[Event "FIDE WSTC Open 50 2025"]
[Site "Prague"]
[Date "2025.02.24"]
[Round "7.25"]
[White "Czebe, Attila"]
[Black "Aagaard, Jacob"]
[Result "1/2-1/2"]
[Annotator "TA"]
[ECO "A45"]
[WhiteElo "2255"]
[BlackElo "2435"]
[PlyCount "140"]
[EventDate "2025.02.17"]
[EventType "team-tourn"]
[EventCountry "CZE"]
[SourceTitle "playchess.com"]
[Source "ChessBase"]
[SourceQuality "1"]
[TimeControl "40/5400+30:1800+30"]

{[%evp 9,140,40,47,18,61,30,38,30,64,56,74,82,81,75,71,97,62,79,79,84,96,0,0,0,0,0,0,0,4,0,0,-17,-15,-81,-77,-60,-74,-68,-35,-45,-60,-60,-56,-75,-70,-65,-8,-12,0,-17,-27,-3,12,-89,-48,-91,-72,-80,-56,-89,-75,-75,-75,-97,-102,-139,-126,-181,-183,-177,-119,-112,-100,-153,-157,-150,-170,-181,-191,-187,-180,-206,-70,-70,-70,-75,-8,-18,0,-297,-171,-179,-177,-149,-112,-207,-200,-192,-192,-184,0,0,0,0,0,0,0,0,0,0,0,0,0,0,0,0,0,0,0,0,0,0,0,0,0,0,0,0,0,0,0,0,0]} 1. d4 {[%emt 0:00:21]} Nf6 {[%emt 0:00:11]} 2. Bf4 {[%emt 0:00:54]} g6 {[%emt 0:00:30]} 3. Nc3 {[%emt 0:01:11]} Bg7 {[%emt 0:04:44]} 4. e4 {[%emt 0:00:15]} d6 {[%emt 0:00:10]} 5. Qd2 {[%emt 0:00:35]} c6 {[%emt 0:09:50]} 6. O-O-O {[%emt 0:01:17] B07: Pirc Defence: Miscellaneous Systems.} Qa5 {[%emt 0:02:26]} 7. f3 {[%emt 0:04:15]} b5 {[%emt 0:07:05]} 8. Kb1 {[%emt 0:00:41] White is slightly better.} Nbd7 {[%emt 0:05:32]} 9. e5 {[%emt 0:24:39]} dxe5 {[%emt 0:08:03]} 10. dxe5 {[%emt 0:00:04]} Nh5 {[%emt 0:03:52][%cal Oh5f4] [#]} 11. e6 $1 {[%emt 0:03:24]} fxe6 {[%emt 0:00:10] [#]} 12. Nxb5 $146 {[%emt 0:00:09]} ({Predecessor:} 12. Nd5 Qxd2 13. Nc7+ Kf7 14. Rxd2 Nxf4 15. Nxa8 Nd5 16. c4 bxc4 17. Bxc4 N7f6 18. Nh3 {0-1 McAleenan,C (1760)-Hall,A (1794) London Central Major 2022 (4)}) 12... Qxd2 {[%emt 0:02:29]} 13. Nc7+ {[%emt 0:00:07] A sharp opening. White attacks} Kf7 {[%emt 0:00:40]} 14. Bxd2 {[%emt 0:00:26]} Rb8 {[%emt 0:00:41]} 15. c3 {[%emt 0:06:50]} (15. b3 $1 $16) 15... Nc5 $36 {[%emt 0:03:50][%mdl 2048] Black has good play.} 16. Kc2 {[%emt 0:03:32]} Be5 {[%emt 0:06:37]} 17. b4 {[%emt 0:00:07]} (17. Be3 Na4 18. b3 Nxc3 $19) 17... Bxc7 {[%emt 0:00:31]} 18. bxc5 {[%emt 0:00:03]} e5 {[%emt 0:00:49]} 19. g4 {[%emt 0:01:35] Inhibits Bf5+.} Nf6 {[%emt 0:00:50]} 20. Nh3 {[%emt 0:01:15]} Kg7 {[%emt 0:03:54] Prevents Bh6+} 21. Bc4 {[%emt 0:01:52]} (21. Nf2 $11) 21... h5 $17 {[%emt 0:00:38]} 22. Ng5 {[%emt 0:02:38]} hxg4 {[%emt 0:01:14] Black has strong rooks and is better} 23. fxg4 {[%emt 0:00:11]} Bxg4 {[%emt 0:03:44]} 24. Ne6+ {[%emt 0:01:22]} Bxe6 {[%emt 0:00:11]} 25. Bxe6 {[%emt 0:00:06]} e4 {[%emt 0:01:37]} 26. h4 {[%emt 0:00:32]} Rb5 {[%emt 0:12:10]} 27. Be3 {[%emt 0:01:18]} Be5 {[%emt 0:01:18]} (27... Rhb8 $1 $15 28. Rb1 Rxb1 29. Rxb1 Rxb1 30. Kxb1 Bg3) 28. a4 $11 {[%emt 0:04:36]} Rb7 {[%emt 0:01:40]} 29. Bg5 {[%emt 0:11:11] This pair of bishops is nice.} Rhb8 {[%emt 0:03:54]} 30. Bc1 {[%emt 0:00:07] Inhibits Rb2+.} Bg3 {[%emt 0:04:07]} (30... Rb1 $6 31. Bh6+ Kxh6 32. Rxb1 $16) 31. Bc4 {[%emt 0:12:42]} (31. Rdf1 $1 $11) 31... Rh8 {[%emt 0:03:18]} 32. Ba6 {[%emt 0:02:15]} Rd7 {[%emt 0:01:42]} 33. Rxd7 {[%emt 0:02:31]} Nxd7 {[%emt 0:00:06]} 34. Bb7 {[%emt 0:00:05]} Nxc5 {[%emt 0:00:49]} (34... Bxh4 35. Be3 $11) (34... Rxh4 $6 35. Rxh4 Bxh4 36. Bxc6 $11) 35. Bxc6 {[%emt 0:00:06]} Rc8 {[%emt 0:00:31]} (35... Rxh4 $2 36. Rxh4 Bxh4 37. Be3 $18) 36. Bd5 {[%emt 0:00:17]} Nxa4 {[%emt 0:03:06]} 37. c4 {[%emt 0:00:22][%cal Oh1f1]} Nc5 {[%emt 0:02:28]} 38. Bb2+ {[%emt 0:00:59]} (38. Rg1 $17 Bxh4 39. Rg4) 38... Kh6 $19 {[%emt 0:00:12]} 39. Bc1+ {[%emt 0:06:24]} Kh7 {[%emt 0:01:43]} (39... Kh5 $19 {[%cal Oe7e6]} 40. Bf7 Bf2 (40... Bxh4 41. Be3 $17)) 40. Bf7 $17 {[%emt 0:03:05]} Rf8 {[%emt 0:02:19]} 41. Be3 {[%emt 0:30:45]} (41. Rg1 $142) 41... Rxf7 {[%emt 0:30:32]} 42. Bxc5 {[%emt 0:00:04][%mdl 4096] Endgame KRB-KRB. Black is two pawns up.} a5 {[%emt 0:00:00]} 43. Be3 {[%emt 0:00:00]} Rf3 {[%emt 0:00:00]} 44. Kd2 {[%emt 0:00:00]} e5 {[%emt 0:00:00]} 45. c5 {[%emt 0:00:00]} Bf2 {[%emt 0:00:00]} ({Black should try} 45... Bf4 $19 46. Re1 Bxe3+ 47. Rxe3 Rxe3 (47... Rf2+ 48. Kd1 $15) 48. Kxe3 a4) 46. Bxf2 $15 {[%emt 0:00:00]} Rxf2+ {[%emt 0:00:00] KR-KR. Black is two pawns up.} 47. Kc3 $1 {[%emt 0:00:00]} Kh6 {[%emt 0:00:00]} (47... a4 $17 48. Kb4 Rc2 (48... e3 49. Re1 $11)) 48. Re1 {[%emt 0:00:00]} a4 {[%emt 0:00:00]} (48... Rf3+ $6 49. Kc4 $16) 49. Rc1 $2 {[%emt 0:00:00][%mdl 8192]} (49. Rxe4 $11 a3 50. Rxe5) 49... Rf8 {[%emt 0:00:00]} (49... a3 $142 {And now ...a2 would win.} 50. Kb3 Rf3+ 51. Ka2 e3) 50. Kd2 $19 {[%emt 0:00:06]} a3 {[%emt 0:01:23]} 51. Ke3 {[%emt 0:00:40]} a2 {[%emt 0:00:37]} 52. Kxe4 {[#]} (52. Ra1 $17) 52... Rf4+ $1 {[%emt 0:01:16]} 53. Kd5 {[%emt 0:05:22] [#]} Rd4+ $1 {[%emt 0:00:08]} (53... Rxh4 54. c6 Rd4+ 55. Kxe5 $11) 54. Ke6 {[%emt 0:01:58]} e4 $2 {[%emt 0:03:13]} (54... Rc4 $1 $19 {[%cal Rc4c1]} 55. Ra1 Rc2 (55... Rxc5 $2 56. Rxa2 Rc4 57. Kxe5 $17)) 55. c6 $11 {[%emt 0:00:27][%cal Bc5c6,Bc6c7][%mdl 32] and c7 should not be overlooked. The position is equal.} Rc4 {[%emt 0:00:01]} 56. Rxc4 {[%emt 0:00:12]} a1=Q {[%emt 0:00:10] KQ-KR Repels Rc1} ({Stronger than} 56... a1=B 57. Rxe4 Kg7 58. c7 Kg8 59. c8=Q+ (59. c8=B Kg7 $18) 59... Kg7 60. Ra4 Kh6 61. Qc1+ (61. Rxa1 Kh5 62. Rg1 g5 63. Qh8+ Kg6 64. Rxg5#) 61... g5 62. Qxg5+ (62. Rxa1 Kg6 63. Qxg5+ Kh7 64. Ra7+ Kh8 65. Qg7#) 62... Kh7 63. Ra7+ Kh8 64. Qd8#) 57. c7 $1 {[%emt 0:00:08]} Qa6+ {[%emt 0:00:09]} 58. Kd5 $1 {[%emt 0:00:10]} Qc8 {[%emt 0:01:26]} 59. Kxe4 {[%emt 0:00:31]} Kg7 {[%emt 0:00:29]} 60. Kd3 {[%emt 0:03:02]} Kf6 {[%emt 0:00:11]} 61. Kc3 {[%emt 0:00:31]} Ke5 {[%emt 0:00:11]} 62. Rc5+ {[%emt 0:01:04]} Kd6 {[%emt 0:00:11]} 63. Rc4 {[%emt 0:00:05]} Kd5 {[%emt 0:00:37]} 64. Rd4+ {[%emt 0:01:00]} Kc5 {[%emt 0:00:07]} 65. Rc4+ {[%emt 0:00:05]} Kb5 {[%emt 0:00:05]} 66. Rb4+ {[%emt 0:00:04]} Ka5 {[%emt 0:00:05]} 67. Rc4 {[%emt 0:00:04]} Kb5 {[%emt 0:01:09]} 68. Rb4+ {[%emt 0:02:01]} Kc5 {[%emt 0:00:02]} 69. Rc4+ {[%emt 0:00:05]} Kb5 {[%emt 0:00:07] ( -> ...Qh3+)} 70. Rb4+ {[%emt 0:00:03]} Kc5 {[%emt 0:00:04] Whites escaped into a draw.   Weighted Error Value: White=0.24 (precise) /Black=0.19 (very precise)   Loses game:     	White=1     	---        Missed win:     	---       	Black=1      Mistake:       	White=6     	Black=5      Inaccurate:     	White=4     	Black=4      OK:         	White=23    	Black=24     Best:        	White=7     	Black=5      Strong:       	White=3     	Black=2      Brilliant:      	White=2     	---} 1/2-1/2

[Event "FIDE WSTC Open 50 2025"]
[Site "Prague"]
[Date "2025.02.24"]
[Round "7.26"]
[White "Jaksland, Tim"]
[Black "Varga, Zoltan"]
[Result "0-1"]
[Annotator "TA"]
[ECO "B07"]
[WhiteElo "2143"]
[BlackElo "2301"]
[PlyCount "54"]
[EventDate "2025.02.17"]
[EventType "team-tourn"]
[EventCountry "CZE"]
[SourceTitle "playchess.com"]
[Source "ChessBase"]
[SourceQuality "1"]
[TimeControl "40/5400+30:1800+30"]

{[%evp 16,54,42,39,42,46,68,41,41,26,62,45,42,40,39,63,54,52,97,0,93,83,165,-12,-11,-7,0,0,0,-13,-18,-263,-257,-390,-387,-404,-393,-395,-383,-1114,-1113]} 1. e4 {[%emt 0:00:03]} d6 {[%emt 0:00:06]} 2. d4 {[%emt 0:00:27]} Nf6 {[%emt 0:00:07]} 3. Nc3 {[%emt 0:00:33]} Nbd7 {[%emt 0:00:05]} 4. Nf3 {[%emt 0:00:42]} e5 {[%emt 0:00:22]} 5. Bc4 {[%emt 0:00:44]} Be7 {[%emt 0:00:06]} 6. O-O {[%emt 0:00:34]} O-O {[%emt 0:00:04]} 7. Re1 {[%emt 0:01:01]} c6 {[%emt 0:00:37]} 8. a4 {[%emt 0:00:27]} h6 {[%emt 0:00:23] 8...a5 is setting a new trend.} 9. h3 {[%emt 0:01:17]} exd4 {[%emt 0:00:51] C41: Philidor Defence.} 10. Nxd4 {[%emt 0:01:52]} Ne5 {[%emt 0:00:07]} 11. Ba2 {[%emt 0:01:24]} Re8 {[%emt 0:00:23] White is slightly better.} 12. Bf4 {[%emt 0:02:09]} Bf8 {[%emt 0:01:03]} 13. Bg3 {[%emt 0:01:44][%cal Oa4a5]} Qa5 {[%emt 0:02:24]} 14. f4 $146 {[%emt 0:10:35]} (14. Bb3 Ng6 15. Qd2 Qh5 16. a5 a6 17. Bc4 Ne5 18. Bb3 Qg6 19. Re3 Nh5 20. Bh2 {1-0 Isha,S (2147)-Ratkovic,P (2094) Senta Fantastico op 02 2024 (3)}) 14... Ng6 {[%emt 0:02:47]} 15. Qf3 {[%emt 0:02:11]} Bd7 {[%emt 0:08:23]} 16. Bf2 {[%emt 0:19:09]} Rad8 {[%emt 0:17:48]} 17. g4 {[%emt 0:09:58]} (17. Qg3 $16) 17... c5 {[%emt 0:05:05]} (17... Qb4 $1 $11) 18. Nf5 $16 {[%emt 0:08:45]} Bc6 {[%emt 0:02:58][%csl Of5] [#] Strong Square White (f5)} (18... Qb4 $16) 19. Bd5 $2 {[%emt 0:09:22]} (19. g5 $1 $18 {[%cal Rg5f6]} hxg5 20. fxg5) 19... Bxd5 $11 {[%emt 0:05:43]} 20. exd5 {[%emt 0:04:29]} Qb4 {[%emt 0:00:37][%csl LRb2,LRf4]} 21. Bg3 {[%emt 0:04:12]} Rxe1+ {[%emt 0:02:53]} 22. Rxe1 {[%emt 0:00:43]} Qxb2 {[%emt 0:00:02]} 23. Rb1 $2 {[%emt 0:06:08] [#] This costs White the game.} (23. Qd3 $11 {and White stays safe.}) 23... Qxc2 $19 {[%emt 0:11:53]} 24. Rxb7 {[%emt 0:00:10]} (24. Rf1 $142) 24... Re8 {[%emt 0:00:38][%cal Og6f4]} 25. Rb1 {[%emt 0:08:14]} Ne4 {[%emt 0:04:55]} 26. Re1 {[%emt 0:00:40]} Nd2 {[%emt 0:00:05]} (26... Qxc3 $2 {loses.} 27. Qxc3 Nxc3 28. Rxe8 $18) 27. Qg2 {[%emt 0:02:50]} (27. Qd1 Rxe1+ (27... Qxc3 28. Rxe8 Nf3+ 29. Kh1 $16) 28. Bxe1 Qxc3 29. Bxd2 Qxh3 30. Qe2) 27... Nxf4 {[%emt 0:12:22] Weighted Error Value: White=0.78/Black=0.21 (precise)   Loses game:     	White=1     	---        Missed win:     	White=1     	---        Mistake:       	White=3     	Black=2      Inaccurate:     	White=1     	Black=2      OK:         	White=2     	Black=9      Best:        	White=2     	Black=2} 0-1

[Event "FIDE WSTC Open 50 2025"]
[Site "Prague"]
[Date "2025.02.24"]
[Round "7.27"]
[White "Horvath, Peter"]
[Black "Nordenbaek, Jan"]
[Result "1-0"]
[Annotator "TA"]
[ECO "D30"]
[WhiteElo "2354"]
[BlackElo "2192"]
[PlyCount "95"]
[EventDate "2025.02.17"]
[EventType "team-tourn"]
[EventCountry "CZE"]
[SourceTitle "playchess.com"]
[Source "ChessBase"]
[SourceQuality "1"]
[TimeControl "40/5400+30:1800+30"]

{[%evp 19,95,16,11,0,25,0,0,0,0,0,0,-13,0,8,21,25,36,33,64,26,27,12,9,19,2,4,14,17,26,13,55,37,60,42,64,8,47,23,33,33,64,36,65,45,45,41,39,0,0,0,0,0,0,0,0,0,0,0,0,0,9,9,18,0,60,79,97,95,120,78,107,107,132,121,439,450,1479,366]} 1. d4 {[%emt 0:00:04]} d5 {[%emt 0:00:38]} 2. c4 {[%emt 0:00:37]} e6 {[%emt 0:00:43]} 3. Nf3 {[%emt 0:01:05]} Nf6 {[%emt 0:00:17]} 4. Bg5 {[%emt 0:01:07]} Bb4+ {[%emt 0:01:17]} 5. Nc3 {[%emt 0:02:17]} h6 {[%emt 0:01:50]} 6. Bxf6 {[%emt 0:01:45]} Qxf6 {[%emt 0:02:42]} 7. Qa4+ {[%emt 0:01:10]} Nc6 {[%emt 0:00:12]} 8. e3 {[%emt 0:02:05]} O-O {[%emt 0:01:09]} 9. cxd5 {[%emt 0:00:35]} exd5 {[%emt 0:00:20]} 10. Be2 {[%emt 0:01:46]} Rd8 {[%emt 0:12:28]} 11. O-O {[%emt 0:02:44] D38: Queen's Gambit Declined: Ragozin Defence (4 Nf3 Bb4).} a6 {[%emt 0:00:28]} 12. Rfc1 {[%emt 0:06:38]} Be6 {[%emt 0:00:31]} 13. Qd1 {[%emt 0:02:29] The position is equal.} Bd6 {[%emt 0:02:36]} 14. Na4 {[%emt 0:06:15]} Ne7 {[%emt 0:02:52]} 15. Nc5 {[%emt 0:01:01]} Bc8 {[%emt 0:09:28]} 16. b4 {[%emt 0:24:12]} b6 {[%emt 0:07:00][%cal Oa6a5]} 17. Nd3 {[%emt 0:04:10]} g5 $146 {[%emt 0:01:52]} ({Predecessor:} 17... a5 18. b5 Bf5 19. Nde5 Ng6 20. Rc6 Bd7 21. Nxd7 Rxd7 22. Bd3 Re8 23. Bxg6 Qxg6 {1-0 Wagh,S (2246)-Iljin,T (2273) Titled Tuesday intern op 11th Aug blitz 2020 (6)}) 18. Nfe5 {[%emt 0:03:22]} Ng6 {[%emt 0:01:05]} 19. Nxg6 {[%emt 0:02:44]} fxg6 {[%emt 0:03:00]} 20. Bf3 {[%emt 0:07:28]} Be6 {[%emt 0:02:19]} 21. g3 {[%emt 0:01:34]} a5 {[%emt 0:05:28]} 22. b5 {[%emt 0:01:12]} Rf8 {[%emt 0:01:39]} 23. Bg2 {[%emt 0:01:49]} Rae8 {[%emt 0:01:53]} 24. a4 {[%emt 0:03:52]} Kh8 {[%emt 0:01:17]} 25. Ra2 {[%emt 0:00:57]} Re7 {[%emt 0:00:15]} 26. Qb3 {[%emt 0:02:29]} Qf5 {[%emt 0:02:37]} 27. Rac2 {[%emt 0:00:57]} ({Better is} 27. f4 $14) 27... Bg8 {[%emt 0:02:24]} 28. Rc6 {[%emt 0:02:59][%cal Oc6d6]} Be6 {[%emt 0:09:39]} 29. Qc2 {[%emt 0:01:36]} Bd7 {[%emt 0:00:37]} 30. Rc3 {[%emt 0:00:16][%cal Od3e5]} Be6 {[%emt 0:01:43] [#]} 31. Ne5 $1 {[%emt 0:01:06]} Qxc2 {[%emt 0:01:06]} 32. R3xc2 {[%emt 0:01:45]} Kg7 {[%emt 0:01:48]} 33. Rc6 {[%emt 0:06:46]} g4 {[%emt 0:00:59]} 34. Bf1 {[%emt 0:02:26]} h5 {[%emt 0:04:09]} 35. Bd3 {[%emt 0:01:12]} Rf6 {[%emt 0:01:07]} 36. R1c2 {[%emt 0:00:48]} Bf5 {[%emt 0:01:39]} 37. Bxf5 {[%emt 0:00:21]} Rxf5 {[%emt 0:00:09]} 38. Kg2 {[%emt 0:02:17]} g5 {[%emt 0:00:58]} 39. h3 {[%emt 0:00:43]} gxh3+ {[%emt 0:00:59]} 40. Kxh3 {[%emt 0:00:10]} Rf6 {[%emt 0:03:12]} 41. f4 {[%emt 0:08:05]} Kh6 {[%emt 0:03:58]} (41... g4+ $1 $11 42. Kh4 Kh6) 42. Kg2 $14 {[%emt 0:09:00]} Rg7 {[%emt 0:01:41]} 43. Kf3 $36 {[%emt 0:01:47][%mdl 2048] White is on the roll.} Kh7 {[%emt 0:04:20]} 44. Rc1 {[%emt 0:09:25] White is more active.} Kg8 {[%emt 0:00:35]} 45. Rh1 {[%emt 0:00:32]} g4+ {[%emt 0:00:49]} 46. Ke2 {[%emt 0:00:46]} Kf8 $2 {[%emt 0:00:49][%mdl 8192] [#]} (46... Rh7 $16 47. Rc2 Kg7) 47. Rxh5 $18 {[%emt 0:00:43]} Rf5 (47... Ke8 $142 48. Rc1 Rg8) 48. Rh1 $2 {Weighted Error Value: White=0.10 (very precise) /Black=0.35  Loses game:     	---       	Black=1      Mistake:       	White=2     	Black=2      Inaccurate:     	White=3     	Black=6      OK:         	White=14    	Black=12     Best:        	White=2     	---} (48. Rxf5+ Ke8 49. Rg5 (49. Rh5 Ke7 $18)) 1-0

[Event "FIDE WSTC Open 50 2025"]
[Site "Prague"]
[Date "2025.02.24"]
[Round "7.28"]
[White "Nielsen, Niels-Peter"]
[Black "Krizsany, Laszlo"]
[Result "0-1"]
[Annotator "TA"]
[ECO "B00"]
[WhiteElo "2086"]
[BlackElo "2303"]
[PlyCount "76"]
[EventDate "2025.02.17"]
[EventType "team-tourn"]
[EventCountry "CZE"]
[SourceTitle "playchess.com"]
[Source "ChessBase"]
[SourceQuality "1"]
[TimeControl "40/5400+30:1800+30"]

{[%evp 17,76,0,10,-4,0,-24,0,0,0,8,8,0,0,-25,-14,-81,-25,-24,-25,-32,-21,-25,-17,-76,-63,-72,-75,-94,-56,-109,-85,-82,-78,-71,-75,-70,-71,-83,-81,-85,-85,-122,-110,-139,-138,-161,-162,-194,-193,-211,-197,-215,-232,-271,-243,-368,-363,-727,-727,-940,-940]} 1. e4 {[%emt 0:00:04]} b6 {[%emt 0:00:07]} 2. Nf3 {[%emt 0:04:51]} Bb7 {[%emt 0:00:08]} 3. Nc3 {[%emt 0:00:35]} e6 {[%emt 0:00:21]} 4. d4 {[%emt 0:02:21]} Bb4 {[%emt 0:00:23]} 5. Bd3 {[%emt 0:01:30]} Nf6 {[%emt 0:00:57]} 6. Bg5 {[%emt 0:01:22]} h6 {[%emt 0:01:32]} 7. Bxf6 {[%emt 0:00:38]} Qxf6 {[%emt 0:00:31]} 8. O-O {[%emt 0:00:41]} Bxc3 {[%emt 0:01:24]} 9. bxc3 {[%emt 0:00:07]} d6 {[%emt 0:02:30]} 10. Re1 {[%emt 0:07:07] B00: Queen's Fianchetto Defence, Nimzowitsch Defence.} Nd7 {[%emt 0:08:24]} 11. e5 $146 {[%emt 0:06:56]} ({Predecessor:} 11. Qe2 O-O 12. Ba6 Bxa6 13. Qxa6 Qd8 14. Rad1 Qc8 15. Qd3 Nf6 16. e5 Nd7 17. a3 dxe5 18. dxe5 {½-½ Tupy,E (1563)-Kastler,P (1630) SVK-chT3A2 2223 2022 (2.5)}) 11... Bxf3 {[%emt 0:15:22]} 12. exf6 {[%emt 0:02:15] The position is equal.} Bxd1 {[%emt 0:00:08]} 13. fxg7 {[%emt 0:00:13] A sharp opening} Rg8 {[%emt 0:00:10]} 14. Raxd1 {[%emt 0:00:17]} Ke7 {[%emt 0:00:39]} 15. Re3 {[%emt 0:09:05]} Rxg7 {[%emt 0:00:29]} 16. Rg3 {[%emt 0:03:16]} (16. a4 $11) 16... Rag8 {[%emt 0:02:48]} ({Black should play} 16... Rxg3 $17 17. hxg3 c5) 17. Rxg7 $11 {[%emt 0:00:52]} Rxg7 {[%emt 0:00:02][%mdl 4096] Endgame KRB-KRN} 18. f4 {[%emt 0:02:35] Inhibits Rg5.} Nf6 {[%emt 0:03:14]} 19. c4 {[%emt 0:06:34] Dodges Nd5} d5 {[%emt 0:02:28]} 20. c5 {[%emt 0:03:18]} (20. Re1 $11 {remains equal.}) 20... bxc5 {[%emt 0:10:50]} 21. dxc5 {[%cal Bd4c5,Bc5c6][%mdl 32]} Nd7 {[%emt 0:00:18]} 22. c6 {[%emt 0:03:55]} Nb6 {[%emt 0:03:10]} 23. a4 {[%emt 0:02:12]} Nxa4 {[%emt 0:08:21]} 24. Ra1 {[%emt 0:05:42]} Nb6 {[%emt 0:00:13]} 25. Rxa7 {[%emt 0:01:37]} Kd6 {[%emt 0:00:10]} 26. Be2 {[%emt 0:03:30]} Kxc6 {[%emt 0:01:40]} 27. Ra3 {[%emt 0:00:48]} Nd7 {[%emt 0:06:39]} 28. Rh3 {[%emt 0:02:31]} Rg6 {[%emt 0:00:29]} 29. Bh5 {[%emt 0:01:00]} Rf6 {[%emt 0:00:48]} 30. Rc3+ {[%emt 0:00:20]} Kd6 {[%emt 0:00:25]} 31. g3 {[%emt 0:00:18]} e5 {[%emt 0:01:47]} 32. fxe5+ {[%emt 0:01:54]} Nxe5 {[%emt 0:01:19]} 33. Be2 {[%emt 0:01:19] [#]} d4 $1 {[%emt 0:02:43]} 34. Ra3 {[%emt 0:00:51]} Kd5 {[%emt 0:01:14]} 35. Kg2 {[%emt 0:04:19]} c5 {[%emt 0:04:06]} 36. g4 {[%emt 0:02:45]} (36. Bd3 {might work better.}) 36... Rb6 $19 {[%emt 0:04:15] and ...Rb2 should not be overlooked} 37. Kf2 $2 {[%emt 0:08:35] [#]} (37. Kg3) 37... Rb2 {[%emt 0:03:09]} 38. Bd1 {[%emt 0:02:23]} d3 {[%emt 0:01:19] Weighted Error Value: White=0.40/Black=0.08 (flawless)   Mistake:       	White=5     	Black=1      Inaccurate:     	White=1     	Black=2      OK:         	White=7     	Black=12     Best:        	White=3     	Black=3} 0-1

[Event "FIDE WSTC Open 50 2025"]
[Site "Prague"]
[Date "2025.02.24"]
[Round "7.29"]
[White "Svensson, Bengt"]
[Black "Davies, Nigel R"]
[Result "1/2-1/2"]
[Annotator "TA"]
[ECO "B42"]
[WhiteElo "2297"]
[BlackElo "2294"]
[PlyCount "47"]
[EventDate "2025.02.17"]
[EventType "team-tourn"]
[EventCountry "CZE"]
[SourceTitle "playchess.com"]
[Source "ChessBase"]
[SourceQuality "1"]
[TimeControl "40/5400+30:1800+30"]

{[%evp 20,47,18,27,37,8,67,46,45,52,60,43,40,31,28,27,52,47,58,0,82,55,62,1,52,36,27,14,29,35]} 1. e4 {[%emt 0:00:04]} c5 {[%emt 0:00:10]} 2. Nf3 {[%emt 0:00:08][%cal Bg1f3,Bf3d4,Bd4b3][%mdl 32]} e6 {[%emt 0:00:10]} 3. d4 {[%emt 0:00:28]} cxd4 {[%emt 0:00:07]} 4. Nxd4 {[%emt 0:00:04]} a6 {[%emt 0:00:18]} 5. Bd3 {[%emt 0:01:08]} Bc5 {[%emt 0:00:15]} 6. Nb3 {[%emt 0:00:06]} Ba7 {[%emt 0:00:12]} 7. Nc3 {[%emt 0:01:31]} Nc6 {[%emt 0:00:20]} 8. Qe2 {[%emt 0:00:26]} d6 {[%emt 0:00:20]} 9. Be3 {[%emt 0:00:14]} Bxe3 {[%emt 0:02:40]} 10. Qxe3 {[%emt 0:00:12]} Nf6 {[%emt 0:00:15]} 11. O-O-O {[%emt 0:04:46]} e5 {[%emt 0:30:39] B42: Sicilian: Kan Variation: 5 Bd3.} 12. f4 {[%emt 0:12:54]} exf4 {[%emt 0:00:21]} (12... Be6 $11) 13. Qxf4 $14 {[%emt 0:01:18]} O-O {[%emt 0:00:41] White is slightly better.} 14. Be2 {[%emt 0:02:40]} Ne5 {[%emt 0:00:58]} 15. Rd2 $146 {[%emt 0:03:24]} ({Predecessor:} 15. Qd2 Ne8 16. Rhf1 b5 17. Kb1 Bb7 18. a3 Rc8 19. h3 Qc7 20. Rf4 Qe7 21. Nd4 g6 22. Rdf1 Ng7 23. Rf6 Nd7 24. R6f4 Ne5 25. Rf6 Nd7 26. R6f4 Ne5 {½-½ Paravyan,D (2601)-Kamsky,G (2665) ChessKid Play In m blitz 2023 (1.2)}) 15... Qe7 {[%emt 0:04:01]} 16. Rhd1 {[%emt 0:04:06]} Rd8 {[%emt 0:00:07]} 17. h3 {[%emt 0:03:07]} Be6 {[%emt 0:01:11]} 18. g4 {[%emt 0:00:12][%cal Bg2g4,Bg4g5][%mdl 32]} Rac8 {[%emt 0:01:54]} 19. Kb1 {[%emt 0:03:43]} (19. g5 $14 Ne8 20. Nd4) 19... g6 {[%emt 0:05:12]} (19... Ng6 $11 {remains equal.} 20. Qe3 h6) 20. g5 {[%emt 0:08:03]} Ne8 {[%emt 0:00:16]} 21. Bg4 {[%emt 0:00:24]} (21. Qg3 $14) 21... Rxc3 {[%emt 0:14:36]} 22. bxc3 {[%emt 0:01:11]} Rc8 {[%emt 0:02:48]} 23. Bxe6 {[%emt 0:07:11]} Qxe6 {[%emt 0:00:23]} 24. Qg3 {Weighted Error Value: White=0.23 (precise) /Black=0.24 (precise)   Mistake:       	White=2     	Black=3      Inaccurate:     	White=2     	---        OK:         	White=5     	Black=5} 1/2-1/2